bitfinex/quotes_BTCUSD_20220731
["timestamp","ask_amount","ask_price","bid_price","bid_amount"]
[1659300571616,0.05425736,23806.0,23805.0,2.4806157]
[1659300571854,0.10145451,23806.0,23805.0,2.4806157]
[1659300572075,0.10145451,23806.0,23805.0,2.19765668]
[1659300572523,0.15145451,23806.0,23805.0,2.26165668]
[1659300573041,0.10632817,23806.0,23805.0,2.5446157]
[1659300573284,0.002,23807.0,23805.0,2.95385668]
[1659300573513,0.002,23807.0,23806.0,1.41604781]
[1659300573756,0.002,23807.0,23806.0,1.72289381]
[1659300574232,0.002,23807.0,23806.0,1.70585283]
[1659300574453,0.002,23807.0,23806.0,1.58905093]
[1659300574688,0.04729515,23809.0,23807.0,0.10093999]
[1659300574921,0.04729515,23809.0,23806.0,1.78585283]
[1659300574922,0.001,23810.0,23809.0,1.53263999]
[1659300575154,0.001,23810.0,23809.0,2.0741029]
[1659300575391,0.001,23810.0,23809.0,1.35097507]
[1659300575677,0.001,23810.0,23809.0,1.25103508]
[1659300575911,0.001,23810.0,23809.0,1.28570824]
[1659300576145,0.001,23810.0,23809.0,1.37942824]
[1659300576374,0.001,23810.0,23809.0,1.40542824]
[1659300576831,0.00335443,23810.0,23809.0,1.40542824]
[1659300577052,0.00335443,23810.0,23809.0,1.33533966]
[1659300577491,0.00335443,23810.0,23809.0,1.29161966]
[1659300577720,0.04707443,23810.0,23809.0,1.1309465]
[1659300577969,0.04707443,23810.0,23809.0,0.7809465]
[1659300578210,0.04707443,23810.0,23809.0,0.14947917]
[1659300578447,0.04707443,23810.0,23809.0,0.22747917]
[1659300579623,0.07860443,23810.0,23809.0,0.04456217]
[1659300579862,0.42948443,23810.0,23809.0,0.04456217]
[1659300580088,0.37948443,23810.0,23809.0,0.04456217]
[1659300581715,0.34795443,23810.0,23809.0,0.04456217]
[1659300582275,0.37948443,23810.0,23809.0,0.04456217]
[1659300583819,0.33576443,23810.0,23809.0,0.04456217]
[1659300584253,0.33576443,23810.0,23809.0,0.16456217]
[1659300584933,0.1,23809.0,23801.0,0.0419]
[1659300585154,0.74857589,23800.0,23797.0,0.03102346]
[1659300585403,1.09945589,23800.0,23794.0,1.5]
[1659300585669,1.04857589,23800.0,23795.0,0.40725733]
[1659300585854,1.04857589,23800.0,23794.0,0.40725733]
[1659300585855,0.39550735,23796.0,23794.0,0.40725733]
[1659300586095,0.36053488,23795.0,23794.0,0.40725733]
[1659300586306,0.10965488,23795.0,23794.0,0.40725733]
[1659300586528,0.41053488,23795.0,23792.0,0.40725733]
[1659300586765,0.14120488,23795.0,23793.0,6.773e-05]
[1659300587002,0.65799029,23794.0,23793.0,6.773e-05]
[1659300587220,0.95887029,23794.0,23793.0,6.773e-05]
[1659300587478,1.34042029,23794.0,23793.0,6.773e-05]
[1659300587697,1.29042029,23794.0,23793.0,6.773e-05]
[1659300587915,0.99042029,23794.0,23787.0,0.0429]
[1659300588135,0.14272216,23791.0,23787.0,0.45015733]
[1659300588589,0.00762067,23790.0,23789.0,6.774e-05]
[1659300588838,0.10835256,23790.0,23789.0,6.774e-05]
[1659300589714,0.40923256,23790.0,23787.0,0.45015733]
[1659300589990,0.10073189,23790.0,23787.0,0.45015733]
[1659300590146,0.10073189,23790.0,23789.0,0.8]
[1659300590366,0.10073189,23790.0,23789.0,1.20725733]
[1659300590367,0.09073189,23790.0,23789.0,1.20725733]
[1659300590821,0.09073189,23790.0,23789.0,1.5429781]
[1659300591040,0.09073189,23790.0,23789.0,1.50725733]
[1659300591284,0.14073189,23790.0,23789.0,1.50725733]
[1659300591715,0.10073189,23790.0,23789.0,1.50725733]
[1659300591947,0.00691614,23794.0,23790.0,0.09262811]
[1659300592174,0.00691614,23794.0,23793.0,0.9055]
[1659300592397,0.00691614,23794.0,23793.0,1.53715833]
[1659300592612,0.00691614,23794.0,23793.0,1.83715833]
[1659300592833,0.04071974,23798.0,23793.0,1.9228791]
[1659300593056,0.04071974,23798.0,23797.0,0.4]
[1659300593278,0.75593721,23803.0,23797.0,1.15725733]
[1659300593539,0.35101687,23802.0,23798.0,0.70725733]
[1659300593763,0.34560034,23801.0,23799.0,0.03467316]
[1659300593980,0.35024376,23800.0,23799.0,0.03474934]
[1659300595250,0.09936376,23800.0,23799.0,0.03467316]
[1659300595718,0.10698443,23800.0,23799.0,0.12]
[1659300595933,0.40786443,23800.0,23799.0,0.12]
[1659300596171,0.24352043,23800.0,23799.0,0.12]
[1659300596397,0.24352043,23800.0,23793.0,1.219941]
[1659300596398,0.75231581,23799.0,23793.0,1.219941]
[1659300596620,0.405886,23798.0,23794.0,0.40725733]
[1659300596845,0.65280314,23797.0,23794.0,0.40725733]
[1659300597070,0.69696798,23797.0,23795.0,0.00030479]
[1659300597302,0.80197198,23797.0,23795.0,0.40756212]
[1659300597810,0.80197198,23797.0,23795.0,0.40725733]
[1659300598034,0.40052275,23796.0,23794.0,0.105002]
[1659300598266,0.15465239,23795.0,23792.0,0.0419]
[1659300598488,0.1,23793.0,23791.0,0.0422325]
[1659300598707,0.94305725,23792.0,23791.0,0.0422325]
[1659300598965,1.83914548,23792.0,23791.0,0.0422325]
[1659300599178,1.83914548,23792.0,23791.0,0.0003325]
[1659300599396,1.11898786,23788.0,23787.0,0.001]
[1659300599636,1.41986786,23788.0,23787.0,0.001]
[1659300599863,1.46986786,23788.0,23787.0,0.001]
[1659300600089,1.90868519,23788.0,23787.0,0.00133252]
[1659300600350,1.90868519,23788.0,23779.0,0.0419]
[1659300600351,0.05,23783.0,23779.0,0.0419]
[1659300600591,0.05,23783.0,23778.0,0.4]
[1659300600592,0.3,23782.0,23778.0,0.4]
[1659300600822,0.05,23779.0,23777.0,0.5552]
[1659300601054,0.05,23778.0,23777.0,0.0022]
[1659300601269,0.62884711,23778.0,23777.0,0.04604824]
[1659300601522,0.62884711,23778.0,23777.0,0.04611186]
[1659300602408,0.62884711,23778.0,23777.0,0.00226362]
[1659300602638,0.62884711,23778.0,23777.0,0.0812]
[1659300602906,0.92972711,23778.0,23777.0,0.0812]
[1659300603135,0.93734778,23778.0,23777.0,0.0812]
[1659300603351,1.34460511,23778.0,23777.0,0.0812]
[1659300603600,1.89872182,23778.0,23777.0,0.0812]
[1659300603823,1.86715182,23778.0,23777.0,0.0812]
[1659300604048,1.89872182,23778.0,23777.0,0.0812]
[1659300604498,2.02772182,23778.0,23777.0,0.0812]
[1659300604711,1.97010115,23778.0,23777.0,0.0812]
[1659300604932,1.85953115,23778.0,23777.0,0.0022]
[1659300605197,1.80953115,23778.0,23777.0,0.0022]
[1659300605595,1.35922872,23778.0,23777.0,0.0022]
[1659300606493,1.42322872,23778.0,23777.0,0.0022]
[1659300606751,1.47322872,23778.0,23777.0,0.0022]
[1659300606975,0.90068201,23778.0,23777.0,0.4022]
[1659300607203,0.90068201,23778.0,23777.0,0.7022]
[1659300607204,0.59980201,23778.0,23777.0,0.7022]
[1659300607440,0.59980201,23778.0,23777.0,1.10945733]
[1659300607895,0.53580201,23778.0,23777.0,0.4022]
[1659300608597,0.64280201,23778.0,23777.0,0.4022]
[1659300609322,0.64280201,23778.0,23777.0,0.43453297]
[1659300609555,0.76280201,23778.0,23777.0,0.43453297]
[1659300609778,0.70580201,23778.0,23777.0,0.43453297]
[1659300610468,0.77042268,23778.0,23777.0,0.43453297]
[1659300610739,0.76280201,23778.0,23777.0,0.43453297]
[1659300612191,0.70580201,23778.0,23777.0,0.43453297]
[1659300612410,0.70580201,23778.0,23777.0,0.43479926]
[1659300612626,0.76280201,23778.0,23777.0,0.43479926]
[1659300613560,0.76280201,23778.0,23777.0,0.73479926]
[1659300613795,0.65580201,23778.0,23777.0,0.73479926]
[1659300614028,0.16750105,23778.0,23777.0,1.24205659]
[1659300614250,0.16750105,23778.0,23777.0,1.60239283]
[1659300614539,0.1269549,23778.0,23777.0,1.87826605]
[1659300614779,0.1269549,23778.0,23777.0,1.59929283]
[1659300614780,0.16780607,23778.0,23777.0,1.59929283]
[1659300615447,0.16780607,23778.0,23777.0,1.63086283]
[1659300615698,0.21780607,23778.0,23777.0,1.63086283]
[1659300615933,0.105055,23787.0,23778.0,0.01851393]
[1659300616163,0.05224145,23786.0,23785.0,0.4]
[1659300616402,0.05224145,23786.0,23785.0,0.45]
[1659300616646,0.05224145,23786.0,23785.0,0.75104761]
[1659300616863,0.05224145,23786.0,23785.0,0.75]
[1659300617324,0.05224145,23786.0,23785.0,0.78467316]
[1659300617772,0.05657413,23786.0,23785.0,0.78467316]
[1659300617996,0.17657413,23786.0,23785.0,0.78467316]
[1659300618655,0.30557413,23786.0,23785.0,0.75]
[1659300619338,0.18557413,23786.0,23785.0,0.75]
[1659300619571,0.18557413,23786.0,23785.0,0.75104761]
[1659300619797,0.10657413,23786.0,23785.0,0.75104761]
[1659300620718,0.18769436,23786.0,23785.0,0.75104761]
[1659300621699,0.10869436,23786.0,23785.0,0.75]
[1659300622685,0.13769436,23786.0,23785.0,1.15725733]
[1659300622909,0.13769436,23786.0,23785.0,1.38905633]
[1659300623150,0.13769436,23786.0,23785.0,2.17455733]
[1659300623382,0.13769436,23786.0,23785.0,2.44905033]
[1659300623615,0.08545291,23786.0,23785.0,2.52251033]
[1659300624083,0.02775004,23786.0,23785.0,3.76471033]
[1659300624316,0.00216634,23787.0,23785.0,3.76471033]
[1659300624583,0.00216634,23787.0,23786.0,0.84431733]
[1659300624827,0.0478732,23794.0,23786.0,1.06879933]
[1659300625059,0.0478732,23794.0,23791.0,0.5551]
[1659300625060,0.05272548,23793.0,23791.0,0.5551]
[1659300625285,0.05272548,23793.0,23792.0,1.1429781]
[1659300626015,0.10272548,23793.0,23792.0,1.1429781]
[1659300626679,0.10272548,23793.0,23792.0,1.2219781]
[1659300627135,0.10272548,23793.0,23792.0,1.4463931]
[1659300627813,0.10272548,23793.0,23792.0,1.3673931]
[1659300628275,0.105003,23797.0,23792.0,1.4408431]
[1659300628548,0.05685417,23796.0,23795.0,0.4]
[1659300628731,0.05685417,23796.0,23795.0,1.5173551]
[1659300628953,0.05685417,23796.0,23795.0,1.8805551]
[1659300630129,0.05886396,23796.0,23795.0,1.09483433]
[1659300630372,0.05886396,23796.0,23795.0,0.4]
[1659300630602,0.05886396,23796.0,23795.0,0.479]
[1659300630603,0.10886396,23796.0,23795.0,0.479]
[1659300630839,0.62380768,23796.0,23795.0,0.479]
[1659300631305,0.10886396,23796.0,23795.0,1.28625733]
[1659300631529,0.10886396,23796.0,23795.0,1.51063233]
[1659300631753,0.10886396,23796.0,23795.0,1.78163233]
[1659300632684,0.10886396,23796.0,23795.0,1.86163233]
[1659300633849,0.11085334,23796.0,23795.0,1.78163233]
[1659300634529,0.11085334,23796.0,23795.0,1.86163233]
[1659300635667,0.11085334,23796.0,23795.0,1.90353233]
[1659300635913,0.11085334,23796.0,23795.0,2.00353233]
[1659300636616,0.11085334,23796.0,23795.0,2.04063233]
[1659300636858,0.11085334,23796.0,23795.0,1.77815733]
[1659300637089,0.11085334,23796.0,23795.0,2.00253133]
[1659300637820,0.00399917,23796.0,23795.0,1.92353133]
[1659300638071,0.002,23800.0,23797.0,0.0419]
[1659300638295,0.002,23800.0,23799.0,1.51269732]
[1659300638519,0.002,23800.0,23799.0,2.08702732]
[1659300640641,0.002,23800.0,23799.0,2.13622732]
[1659300641863,0.00577492,23800.0,23799.0,2.13622732]
[1659300642094,0.00577492,23800.0,23799.0,2.57702732]
[1659300642311,0.00577492,23800.0,23799.0,2.53602732]
[1659300642558,0.00577492,23800.0,23799.0,2.61602732]
[1659300643045,0.00077492,23800.0,23799.0,2.61602732]
[1659300643276,0.00077492,23800.0,23799.0,3.03580432]
[1659300643539,0.00077492,23800.0,23799.0,3.03812674]
[1659300643771,0.00077492,23800.0,23799.0,2.99006]
[1659300644015,0.00264187,23800.0,23799.0,2.99006]
[1659300644264,0.00264187,23800.0,23799.0,1.93572001]
[1659300644493,0.09624902,23800.0,23799.0,2.02842407]
[1659300645913,0.09624902,23800.0,23799.0,0.53967975]
[1659300646156,0.09624902,23800.0,23799.0,0.13242242]
[1659300646394,0.09624902,23800.0,23799.0,0.05242242]
[1659300646615,0.09624902,23800.0,23799.0,0.13142242]
[1659300646840,0.09624902,23800.0,23799.0,0.15555539]
[1659300647590,0.09624902,23800.0,23799.0,0.11365539]
[1659300647814,0.12778902,23800.0,23799.0,0.03465539]
[1659300648043,0.09624902,23800.0,23799.0,0.03465539]
[1659300648269,0.09624902,23800.0,23799.0,0.06932855]
[1659300648493,0.17624902,23800.0,23799.0,0.06932855]
[1659300648717,0.18386969,23800.0,23799.0,0.03465539]
[1659300648981,0.17624902,23800.0,23799.0,0.03465539]
[1659300649655,0.17624902,23800.0,23799.0,0.06932855]
[1659300649893,0.17624902,23800.0,23799.0,0.03465539]
[1659300650112,0.17624902,23800.0,23799.0,0.43465539]
[1659300650357,0.09624902,23800.0,23799.0,1.24191272]
[1659300650584,0.04624902,23800.0,23799.0,1.89924072]
[1659300650822,0.04624902,23800.0,23799.0,1.93496149]
[1659300651038,0.04624902,23800.0,23799.0,1.95306149]
[1659300651544,0.04624902,23800.0,23799.0,1.99496149]
[1659300652233,0.04624902,23800.0,23799.0,1.96196149]
[1659300652461,0.04624902,23800.0,23799.0,1.66001272]
[1659300652693,0.04624902,23800.0,23799.0,2.00523972]
[1659300653182,0.04624902,23800.0,23799.0,1.96333972]
[1659300653651,0.04624902,23800.0,23799.0,1.81663349]
[1659300653884,0.04624902,23800.0,23799.0,1.69573349]
[1659300654103,0.09624902,23800.0,23799.0,1.69573349]
[1659300654335,0.09624902,23800.0,23799.0,1.19573349]
[1659300654550,0.09624902,23800.0,23799.0,1.31763349]
[1659300655709,0.09624902,23800.0,23799.0,1.26872662]
[1659300656647,0.09624902,23800.0,23799.0,1.34872662]
[1659300656881,0.09624902,23800.0,23799.0,0.94001272]
[1659300656882,0.10386969,23800.0,23799.0,0.94001272]
[1659300657114,0.10386969,23800.0,23799.0,0.53275539]
[1659300657809,0.10386969,23800.0,23799.0,0.45275539]
[1659300658253,0.10386969,23800.0,23799.0,0.05275539]
[1659300658482,0.09624902,23800.0,23799.0,0.07465539]
[1659300658957,0.09624902,23800.0,23799.0,0.12465539]
[1659300659330,0.09624902,23800.0,23799.0,0.07465539]
[1659300659544,0.09624902,23800.0,23799.0,0.375703]
[1659300659751,0.09624902,23800.0,23799.0,0.37037616]
[1659300659920,0.09624902,23800.0,23799.0,0.33465539]
[1659300660327,0.09624902,23800.0,23799.0,0.38465539]
[1659300660538,0.09624902,23800.0,23799.0,0.07465539]
[1659300661130,0.09624902,23800.0,23799.0,0.11037616]
[1659300661542,0.09624902,23800.0,23799.0,0.12465539]
[1659300662180,0.09624902,23800.0,23799.0,0.07465539]
[1659300662395,0.09624902,23800.0,23799.0,0.11465539]
[1659300662396,0.09124902,23800.0,23799.0,0.11465539]
[1659300662827,0.0930588,23800.0,23799.0,0.11465539]
[1659300663677,0.0930588,23800.0,23799.0,0.03465539]
[1659300664398,0.0930588,23800.0,23799.0,0.07065539]
[1659300665060,0.48218947,23800.0,23799.0,0.07065539]
[1659300665267,0.48218947,23800.0,23799.0,0.06833539]
[1659300665268,0.78306947,23800.0,23799.0,0.06833539]
[1659300665505,1.1903268,23800.0,23799.0,0.06833539]
[1659300665733,1.1903268,23800.0,23799.0,0.03233297]
[1659300665960,0.3439388,23800.0,23799.0,0.03233297]
[1659300666432,0.3439388,23800.0,23799.0,0.11033297]
[1659300666939,0.34572953,23800.0,23799.0,0.14500613]
[1659300667171,0.34572953,23800.0,23799.0,0.11033297]
[1659300667375,0.09484953,23800.0,23799.0,0.11033297]
[1659300667596,0.39572953,23800.0,23799.0,0.11033297]
[1659300668254,0.39572953,23800.0,23799.0,0.19605374]
[1659300668255,0.34572953,23800.0,23799.0,0.19605374]
[1659300668469,0.34572953,23800.0,23799.0,0.90331107]
[1659300668470,0.12384953,23800.0,23799.0,0.90331107]
[1659300668693,0.12384953,23800.0,23799.0,0.86721107]
[1659300668899,0.12384953,23800.0,23799.0,0.7895903]
[1659300669132,0.12384953,23800.0,23799.0,0.82531107]
[1659300669985,0.12384953,23800.0,23799.0,0.7895903]
[1659300670226,0.09484953,23800.0,23799.0,0.7895903]
[1659300670443,0.09484953,23800.0,23799.0,0.84931107]
[1659300671749,0.09484953,23800.0,23799.0,0.82531107]
[1659300672470,0.09484953,23800.0,23799.0,0.84931107]
[1659300673548,0.09484953,23800.0,23799.0,1.85121107]
[1659300673748,0.09484953,23800.0,23799.0,1.7495903]
[1659300673953,0.13856953,23800.0,23799.0,1.04233297]
[1659300674409,0.13856953,23800.0,23799.0,1.06433297]
[1659300674611,0.09484953,23800.0,23799.0,1.06433297]
[1659300674822,0.74981975,23800.0,23799.0,1.06433297]
[1659300675884,0.74981975,23800.0,23799.0,1.04233297]
[1659300676318,0.74981975,23800.0,23799.0,1.34233297]
[1659300676532,0.74981975,23800.0,23799.0,1.36433297]
[1659300676742,0.74981975,23800.0,23799.0,1.41433297]
[1659300678106,0.74981975,23800.0,23799.0,1.39233297]
[1659300678354,0.74981975,23800.0,23799.0,1.34233297]
[1659300678561,0.74981975,23800.0,23799.0,1.06433297]
[1659300679188,0.74981975,23800.0,23799.0,1.36433297]
[1659300679394,0.74981975,23800.0,23799.0,1.41433297]
[1659300679837,0.74981975,23800.0,23799.0,1.39233297]
[1659300680450,0.74981975,23800.0,23799.0,1.40133297]
[1659300681826,0.74981975,23800.0,23799.0,1.39233297]
[1659300682561,0.74981975,23800.0,23799.0,1.40133297]
[1659300683208,0.75744042,23800.0,23799.0,1.05133297]
[1659300683694,0.74981975,23800.0,23799.0,1.05133297]
[1659300684135,0.74973927,23800.0,23799.0,1.05133297]
[1659300684355,0.74973927,23800.0,23799.0,1.04233297]
[1659300684598,0.74973927,23800.0,23799.0,1.05133297]
[1659300685680,0.74973927,23800.0,23799.0,1.04233297]
[1659300687704,0.74973927,23800.0,23799.0,1.05233297]
[1659300688583,0.79345927,23800.0,23799.0,1.05233297]
[1659300689031,0.79345927,23800.0,23799.0,1.04233297]
[1659300689257,0.79345927,23800.0,23799.0,1.05233297]
[1659300690043,0.74973927,23800.0,23799.0,1.05233297]
[1659300690484,0.74973927,23800.0,23799.0,1.04233297]
[1659300690709,0.79345927,23800.0,23799.0,1.04233297]
[1659300691212,0.79345927,23800.0,23799.0,1.05233297]
[1659300691658,0.74973927,23800.0,23799.0,1.05233297]
[1659300692364,0.79345927,23800.0,23799.0,1.05233297]
[1659300692583,0.74973927,23800.0,23799.0,1.05233297]
[1659300693027,0.79345927,23800.0,23799.0,1.05233297]
[1659300693740,0.79345927,23800.0,23799.0,1.04233297]
[1659300694656,0.79345927,23800.0,23798.0,0.35068077]
[1659300694657,0.15,23799.0,23793.0,0.461925]
[1659300694946,0.15,23799.0,23790.0,0.68588304]
[1659300694947,0.09292659,23794.0,23790.0,0.68588304]
[1659300695182,0.14292659,23794.0,23793.0,0.4]
[1659300695409,0.09292659,23794.0,23793.0,0.4]
[1659300695641,0.09292659,23794.0,23793.0,0.45971547]
[1659300695882,0.09292659,23794.0,23793.0,0.50161547]
[1659300696338,0.09292659,23794.0,23793.0,0.85161547]
[1659300696574,0.09292659,23794.0,23793.0,0.88861547]
[1659300697042,0.00336376,23794.0,23793.0,1.2958728]
[1659300697284,0.00336376,23794.0,23793.0,1.84855387]
[1659300697689,0.00336376,23794.0,23793.0,1.81155387]
[1659300698386,0.00336376,23794.0,23793.0,1.86155387]
[1659300698608,0.00336376,23794.0,23793.0,1.91555387]
[1659300699777,0.01098443,23794.0,23793.0,1.5332718]
[1659300699992,0.01098443,23794.0,23793.0,1.2332718]
[1659300699993,0.05205407,23794.0,23793.0,1.2332718]
[1659300700209,0.05205407,23794.0,23793.0,1.0088728]
[1659300700442,0.05205407,23794.0,23793.0,1.2332718]
[1659300700674,0.05205407,23794.0,23793.0,1.2592718]
[1659300701126,0.05371859,23794.0,23793.0,1.2592718]
[1659300701357,0.05371859,23794.0,23793.0,1.5592718]
[1659300701785,0.05371859,23794.0,23793.0,1.5332718]
[1659300702722,0.05371859,23794.0,23793.0,1.5612718]
[1659300703858,0.05371859,23794.0,23793.0,1.5332718]
[1659300704527,0.05371859,23794.0,23793.0,1.5612718]
[1659300705908,0.05371859,23794.0,23793.0,1.5332718]
[1659300706581,0.05371859,23794.0,23793.0,1.5632718]
[1659300707825,0.59149315,23794.0,23793.0,1.5332718]
[1659300708420,0.59149315,23794.0,23793.0,1.5632718]
[1659300709737,0.59149315,23794.0,23793.0,1.5332718]
[1659300710415,0.59149315,23794.0,23793.0,1.5632718]
[1659300711718,0.59149315,23794.0,23793.0,1.5332718]
[1659300712424,0.59149315,23794.0,23793.0,1.76003387]
[1659300713791,0.59149315,23794.0,23793.0,1.73003387]
[1659300717590,0.59149315,23794.0,23793.0,1.5332718]
[1659300718048,0.59149315,23794.0,23793.0,1.73003387]
[1659300719609,0.59143306,23794.0,23793.0,1.73003387]
[1659300720794,0.59143306,23794.0,23793.0,1.76003387]
[1659300721251,0.59143306,23794.0,23793.0,1.79003387]
[1659300721476,0.59143306,23794.0,23793.0,1.5932718]
[1659300721958,0.59143306,23794.0,23793.0,1.7302153]
[1659300722538,0.64143306,23794.0,23793.0,1.7302153]
[1659300722986,0.64143306,23794.0,23793.0,1.7602153]
[1659300724197,0.64143306,23794.0,23793.0,1.7302153]
[1659300724391,0.64143306,23794.0,23793.0,1.5332718]
[1659300724910,0.64143306,23794.0,23793.0,1.76621416]
[1659300725083,0.28457832,23794.0,23793.0,1.6692718]
[1659300725288,0.65574514,23800.0,23798.0,0.09993999]
[1659300725289,0.69907695,23800.0,23798.0,0.09993999]
[1659300725514,0.7009,23811.0,23807.0,0.09993999]
[1659300725726,0.03287159,23812.0,23810.0,0.09993999]
[1659300725925,0.03287159,23812.0,23811.0,0.09993999]
[1659300726571,0.03287159,23812.0,23811.0,1.12979388]
[1659300726743,0.03287159,23812.0,23811.0,0.92160488]
[1659300727196,0.03287159,23812.0,23811.0,0.96350488]
[1659300727688,0.03287159,23812.0,23811.0,1.08775089]
[1659300727913,0.03287159,23812.0,23811.0,0.86356489]
[1659300728152,0.03287159,23812.0,23811.0,0.42325733]
[1659300728153,0.04049226,23812.0,23811.0,0.42325733]
[1659300728371,0.04049226,23812.0,23811.0,0.016]
[1659300728597,0.04049226,23812.0,23811.0,0.3]
[1659300728811,0.5440882,23812.0,23811.0,0.318]
[1659300729030,0.8449682,23812.0,23811.0,0.018]
[1659300729519,0.94979031,23812.0,23811.0,0.018]
[1659300729731,0.95456901,23812.0,23811.0,0.018]
[1659300730150,0.98606901,23812.0,23811.0,0.018]
[1659300730369,0.95456901,23812.0,23808.0,0.496816]
[1659300730591,0.65368901,23812.0,23809.0,0.03572077]
[1659300730807,0.05,23811.0,23809.0,0.209875]
[1659300731012,0.05,23811.0,23809.0,0.509875]
[1659300731471,1.05863101,23812.0,23809.0,0.209875]
[1659300731708,0.69037766,23810.0,23809.0,0.209875]
[1659300731941,0.99125766,23810.0,23809.0,0.209875]
[1659300732179,0.99125766,23810.0,23808.0,0.146816]
[1659300732641,0.30088,23809.0,23808.0,0.104916]
[1659300732859,0.33238,23809.0,23808.0,0.105916]
[1659300733575,0.63238,23809.0,23808.0,0.105916]
[1659300734022,0.63238,23809.0,23808.0,0.104916]
[1659300734484,0.63238,23809.0,23808.0,0.10479806]
[1659300734485,1.03963733,23809.0,23808.0,0.10479806]
[1659300734893,1.03963733,23809.0,23808.0,0.31472506]
[1659300735119,1.04933213,23806.0,23799.0,0.2999]
[1659300735360,0.20479603,23804.0,23799.0,0.2999]
[1659300735591,0.05,23802.0,23799.0,0.2999]
[1659300735982,0.54660435,23800.0,23799.0,0.2999]
[1659300736197,0.89748435,23800.0,23799.0,0.2999]
[1659300736915,0.44748435,23800.0,23799.0,0.3789]
[1659300737181,0.14660435,23800.0,23799.0,0.3789]
[1659300738090,0.14660435,23800.0,23799.0,0.2999]
[1659300738311,0.15103751,23800.0,23799.0,0.2999]
[1659300738548,0.15103751,23800.0,23799.0,0.5999]
[1659300738989,0.15103751,23800.0,23799.0,0.3039]
[1659300740165,0.15103751,23800.0,23799.0,0.2999]
[1659300740398,0.10103751,23800.0,23799.0,0.2999]
[1659300740619,0.10103751,23800.0,23799.0,0.5999]
[1659300740842,0.10103751,23800.0,23799.0,0.6039]
[1659300741096,0.10103751,23800.0,23799.0,0.63857316]
[1659300741321,0.10103751,23800.0,23799.0,0.6039]
[1659300741539,0.10103751,23800.0,23799.0,0.3039]
[1659300742216,0.10103751,23800.0,23799.0,0.6039]
[1659300742723,0.10103751,23800.0,23799.0,0.2999]
[1659300742945,0.10103751,23800.0,23799.0,0.3039]
[1659300743400,0.10103751,23800.0,23799.0,0.6039]
[1659300743645,0.10865818,23800.0,23799.0,0.6039]
[1659300744100,0.10865818,23800.0,23799.0,0.5999]
[1659300744328,0.10103751,23800.0,23799.0,0.63457316]
[1659300744557,0.10103751,23800.0,23799.0,0.63562077]
[1659300744788,0.10103751,23800.0,23799.0,0.5999]
[1659300745027,0.10103751,23800.0,23799.0,0.6039]
[1659300746597,0.10103751,23800.0,23799.0,0.63457316]
[1659300746832,0.05103751,23800.0,23799.0,1.45883049]
[1659300747325,0.00443316,23800.0,23799.0,1.55883049]
[1659300747555,0.00443316,23800.0,23799.0,1.78315849]
[1659300747779,0.00443316,23800.0,23799.0,1.81466849]
[1659300748211,0.00443316,23800.0,23799.0,1.79766849]
[1659300748949,0.00443316,23800.0,23799.0,1.85605849]
[1659300750066,0.00443316,23800.0,23799.0,1.47338533]
[1659300750288,0.10466877,23800.0,23799.0,1.10715733]
[1659300750503,0.65871505,23800.0,23799.0,1.10715733]
[1659300750960,0.65871505,23800.0,23799.0,1.18715733]
[1659300751633,0.65871505,23800.0,23799.0,1.48715733]
[1659300752560,0.65871505,23800.0,23799.0,1.40715733]
[1659300753008,0.65871505,23800.0,23799.0,1.42815733]
[1659300753922,0.65871505,23800.0,23799.0,1.65248533]
[1659300754133,0.65871505,23800.0,23799.0,1.63148533]
[1659300755054,0.65871505,23800.0,23799.0,1.44215733]
[1659300755508,0.65871505,23800.0,23799.0,1.66648533]
[1659300755722,0.65871505,23800.0,23799.0,1.44215733]
[1659300756192,0.65871505,23800.0,23799.0,1.40715733]
[1659300756466,0.66019254,23800.0,23799.0,1.40715733]
[1659300756685,0.10614626,23800.0,23799.0,1.40715733]
[1659300756889,0.10614626,23800.0,23799.0,1.66648533]
[1659300757550,0.10614626,23800.0,23799.0,1.44215733]
[1659300757771,0.10614626,23800.0,23799.0,1.66648533]
[1659300757983,0.10614626,23800.0,23799.0,1.44215733]
[1659300758207,0.10614626,23800.0,23799.0,1.40715733]
[1659300758424,0.10614626,23800.0,23799.0,1.63148533]
[1659300758643,0.10614626,23800.0,23799.0,1.67338533]
[1659300758861,0.10614626,23800.0,23799.0,1.70838533]
[1659300759527,0.10603393,23800.0,23799.0,1.70838533]
[1659300760223,0.10603393,23800.0,23799.0,1.67338533]
[1659300760906,0.10603393,23800.0,23799.0,1.75238533]
[1659300762907,0.10603393,23800.0,23799.0,1.70838533]
[1659300764313,0.10603393,23800.0,23799.0,1.67338533]
[1659300764997,0.10603393,23800.0,23799.0,1.70838533]
[1659300766009,0.10603393,23800.0,23799.0,1.67338533]
[1659300766807,0.10603393,23800.0,23799.0,1.70838533]
[1659300768142,0.10603393,23800.0,23799.0,1.67338533]
[1659300768367,0.10603393,23800.0,23799.0,1.44905733]
[1659300768594,0.10603393,23800.0,23799.0,1.67338533]
[1659300768801,0.10603393,23800.0,23799.0,1.70838533]
[1659300769036,0.10603393,23800.0,23799.0,1.48405733]
[1659300769676,0.10603393,23800.0,23799.0,1.70838533]
[1659300770161,0.10603393,23800.0,23799.0,1.67338533]
[1659300770821,0.10603393,23800.0,23799.0,1.70838533]
[1659300771965,0.10603393,23800.0,23799.0,1.67338533]
[1659300772189,0.10603393,23800.0,23799.0,1.67428938]
[1659300773282,0.10603393,23800.0,23799.0,1.44996138]
[1659300773493,0.10603393,23800.0,23799.0,1.67428938]
[1659300773715,0.1136546,23800.0,23799.0,1.67338533]
[1659300773957,0.10603393,23800.0,23799.0,1.44905733]
[1659300774387,0.10603393,23800.0,23799.0,1.40715733]
[1659300774609,0.10603393,23800.0,23799.0,1.44215733]
[1659300776221,0.10603393,23800.0,23799.0,1.51805733]
[1659300776438,0.10603393,23800.0,23799.0,1.48305733]
[1659300777335,0.10603393,23800.0,23799.0,1.40715733]
[1659300777756,0.10603393,23800.0,23799.0,1.40706502]
[1659300777988,0.05603393,23800.0,23799.0,1.40706502]
[1659300778216,0.05603393,23800.0,23799.0,1.72939522]
[1659300778653,0.05603393,23800.0,23799.0,1.77129522]
[1659300778871,0.05603393,23800.0,23799.0,1.84329522]
[1659300779610,0.10603393,23800.0,23799.0,1.84329522]
[1659300780056,0.10603393,23800.0,23799.0,1.73729522]
[1659300780939,0.10603393,23800.0,23799.0,1.77529522]
[1659300782017,0.10603393,23800.0,23799.0,1.73729522]
[1659300783007,0.10603393,23800.0,23799.0,1.77529522]
[1659300783988,0.10603393,23800.0,23799.0,1.73729522]
[1659300784618,0.00579832,23800.0,23799.0,2.63417931]
[1659300784810,0.3,23808.0,23802.0,0.0419]
[1659300784811,0.04492123,23807.0,23802.0,0.0419]
[1659300785016,0.3743,23809.0,23806.0,0.4]
[1659300785216,0.17759631,23810.0,23807.0,0.3]